[Event "EYCC O18-ch 2024"]
[Site "Prague"]
[Date "2024.08.25"]
[Round "4.4"]
[White "Klimkowski, Jan"]
[Black "Garcia Fernandez, Victor"]
[Result "1/2-1/2"]
[ECO "B56"]
[WhiteElo "2508"]
[BlackElo "2313"]
[Annotator "TA"]
[PlyCount "62"]
[EventDate "2024.08.19"]
[EventType "swiss"]
[EventCountry "CZE"]
[SourceTitle "playchess.com"]
[Source "ChessBase"]
[SourceQuality "1"]
[TimeControl "5400+30"]

{[%evp 11,62,6,20,0,16,12,34,45,100,63,116,84,85,61,65,64,82,83,133,67,53,66,182,192,167,34,75,-79,-8,-25,-15,-21,-17,-20,-14,-11,4,0,3,0,43,56,47,26,46,0,0,0,21,0,0,-17,0]} 1. e4 {[%emt 0:00:02]} c5 {[%emt 0:00:08]} 2. Nf3 {[%emt 0:00:04]} Nc6 {[%emt 0:00:09]} 3. Nc3 {[%emt 0:00:06]} d6 {[%emt 0:03:11]} 4. d4 {[%emt 0:00:08]} cxd4 {[%emt 0:00:06]} 5. Nxd4 {[%emt 0:00:02]} Nf6 {[%emt 0:00:07]} 6. Nb3 {[%emt 0:00:05]} e5 {[%emt 0:17:44]} 7. Bg5 {[%emt 0:00:19]} Be7 {[%emt 0:00:07]} 8. Qd2 {[%emt 0:01:07]} Be6 {[%emt 0:05:25]} 9. O-O-O {[%emt 0:01:14] White is slightly better.} a6 {[%emt 0:02:57]} (9... O-O $14) 10. h4 {[%emt 0:09:51]} h6 {[%emt 0:18:42]} (10... O-O $14) 11. Bxf6 $16 {[%emt 0:04:08]} Bxf6 {[%emt 0:00:32]} 12. g3 {[%emt 0:01:38]} (12. Qxd6 {keeps more tension.} Bxh4 13. Qc5 Qf6 14. g3) 12... Be7 {[%emt 0:02:42]} 13. f4 {[%emt 0:08:52]} exf4 {[%emt 0:04:26]} 14. gxf4 {[%emt 0:00:30]} Bxh4 {[%emt 0:00:24] [#]} (14... O-O $142) 15. e5 {[%emt 0:04:27]} Nxe5 $14 {[%emt 0:08:31]} 16. Ne4 {[%emt 0:15:38]} (16. fxe5 $2 Bg5 17. exd6 Bxd2+ $19 (17... Qxd6 $2 18. Qxg5 hxg5 19. Rxh8+ $18)) 16... Nc6 {[%emt 0:03:14]} (16... d5 $2 17. fxe5 (17. Rxh4 Nf3 $17) 17... dxe4 18. Qf4 $18) (16... Ng6 $14) 17. Nxd6+ $18 {[%emt 0:01:19] A dynamic duo of knights.} Kf8 {[%emt 0:00:07] [#]} 18. Qe3 {[%emt 0:20:02]} (18. Nxb7 Qxd2+ 19. Rxd2 Be1 $11) (18. Nc5 $6 Be7 $14) ({White should play} 18. Qh2 $1 $18 {[%cal Rh2h4]} Be7 19. Nxf7 (19. Nxb7 Qb6 $17) 19... Bxf7 20. Rxd8+ Rxd8 21. Nd2) 18... Qe7 $14 {[%emt 0:08:58]} 19. Bh3 {[%emt 0:10:55] Repels Bg4. White has more active pieces.} (19. Nc5 $16 {is necessary to keep the advantage.}) 19... Rd8 {[%emt 0:02:39]} (19... Bd5 $1 $17 20. Qxe7+ Nxe7) 20. Bxe6 $11 {[%emt 0:05:24]} ({Don't go for} 20. Qc5 $2 Bg3 21. Qe3 (21. Bxe6 $2 Bxf4+ 22. Kb1 Bxd6 $19) 21... Qh4 22. Bxe6 Qxf4 $19 (22... Bxf4 23. Rxh4 Bxe3+ 24. Kb1 $17)) 20... Rxd6 {[%emt 0:00:27]} 21. Rxd6 {[%emt 0:00:05]} Qxd6 {[%emt 0:00:05]} 22. Bc8 {[%emt 0:00:41][%cal Be6c8,Bc8b7,Bb7d5][%mdl 32]} Bf6 {[%emt 0:05:20]} 23. Bxb7 {[%emt 0:00:19][%cal Oh1d1]} Nd4 {[%emt 0:00:12]} 24. Nxd4 {[%emt 0:01:57]} Bxd4 {[%emt 0:00:01] Black is weak on the light squares} (24... Qxd4 {simplifies} 25. Qxd4 Bxd4 26. Bxa6 Be3+) 25. Qe4 {[%emt 0:00:48]} g5 {[%emt 0:02:37]} 26. c3 Bf6 {[%emt 0:00:15]} 27. Rd1 {[%emt 0:04:19]} (27. fxg5 {simplifies} hxg5 28. Rxh8+ Bxh8 29. Qb4) 27... Qb6 {[%emt 0:07:41]} 28. Bd5 {[%emt 0:00:54]} (28. Rd7 $1 $14 {deserves consideration.}) 28... Qc7 {[%emt 0:02:31] The position is equal.} 29. Bc4 {[%emt 0:00:54]} Kg7 {[%emt 0:01:30][%cal Oh8e8]} 30. fxg5 {[%emt 0:01:44]} (30. Bxa6 $5 Bxc3 (30... gxf4 31. a4 $16) (30... Qxf4+ 31. Qxf4 gxf4 32. Bb7 $16) 31. bxc3 Qxc3+ 32. Qc2 Qa1+ 33. Kd2 Qd4+ 34. Qd3 Qb2+ 35. Ke3 Re8+ 36. Kf3 Qxa2 37. Bb5 Qa8+ 38. Qd5 Qxd5+ 39. Rxd5 $14) 30... hxg5 {[%emt 0:00:08] Threatens to win with ...Rh4.} 31. Bd5 {[%emt 0:01:54]} Rh2 {[%emt 0:02:04] Weighted Error Value: White=0.24 (precise) /Black=0.25 (precise) .  Mistake:       	White=4     	Black=5      Inaccurate:     	White=1     	Black=1      OK:         	White=7     	Black=6      Best:        	White=4     	Black=1} 1/2-1/2

[Event "EYCC O18-ch 2024"]
[Site "Prague"]
[Date "2024.08.25"]
[Round "4.5"]
[White "Piliposyan, Robert"]
[Black "Malek, Jan"]
[Result "1-0"]
[ECO "E46"]
[WhiteElo "2376"]
[BlackElo "2482"]
[Annotator "TA"]
[PlyCount "81"]
[EventDate "2024.08.19"]
[EventType "swiss"]
[EventCountry "CZE"]
[SourceTitle "playchess.com"]
[Source "ChessBase"]
[SourceQuality "1"]
[TimeControl "5400+30"]

{[%evp 13,81,0,0,0,8,8,10,14,14,10,13,0,0,3,0,0,0,7,7,-13,0,0,0,0,10,10,17,0,0,0,0,0,0,0,31,37,46,49,38,43,266,260,271,262,270,260,293,297,462,449,757,358,360,351,330,360,358,376,392,382,377,380,355,365,366,327,646,643,29970,29972]} 1. d4 {[%emt 0:00:03]} Nf6 {[%emt 0:00:05]} 2. c4 {[%emt 0:00:05]} e6 {[%emt 0:00:04]} 3. Nc3 {[%emt 0:00:03]} Bb4 {[%emt 0:00:25]} 4. e3 {[%emt 0:00:06]} O-O {[%emt 0:00:17]} 5. Bd2 {[%emt 0:00:03]} d5 {[%emt 0:01:57]} 6. Nf3 {[%emt 0:00:27]} b6 {[%emt 0:00:21]} 7. cxd5 {[%emt 0:00:05]} exd5 {[%emt 0:00:05]} 8. Rc1 {[%emt 0:00:05]} c5 {[%emt 0:00:07]} 9. Be2 {[%emt 0:00:15]} Nc6 {[%emt 0:08:06]} 10. O-O {[%emt 0:03:08] The position is equal.} Rb8 {[%emt 0:18:28]} 11. Ne5 {[%emt 0:28:08]} Bb7 {[%emt 0:07:17]} 12. Bb5 {[%emt 0:21:18]} Nxe5 {[%emt 0:12:20]} 13. dxe5 {[%emt 0:01:27]} Bxc3 {[%emt 0:01:03]} 14. Bxc3 {[%emt 0:02:32]} Ne4 {[%emt 0:00:02]} 15. Be1 {[%emt 0:10:28]} c4 {[%emt 0:11:47]} 16. f4 {[%emt 0:05:28]} Qe7 {[%emt 0:04:19]} 17. Ba4 {[%emt 0:01:13]} f6 {[%emt 0:01:44]} 18. exf6 {[%emt 0:05:01]} Qxf6 {[%emt 0:00:58]} 19. Bc2 {[%emt 0:00:12]} Qe7 {[%emt 0:11:03]} 20. Qd4 {[%emt 0:02:10]} Rfe8 {[%emt 0:01:48]} 21. Rf3 {[%emt 0:03:21]} Qc5 {[%emt 0:01:05]} 22. Rd1 {[%emt 0:00:28]} Bc6 {[%emt 0:02:33]} 23. Rh3 {[%emt 0:03:12]} Rb7 {[%emt 0:00:19]} 24. Bc3 {[%emt 0:02:39]} h6 {[%emt 0:00:15]} 25. Bxe4 {[%emt 0:01:05]} Rxe4 {[%emt 0:05:25]} 26. Qd2 {[%emt 0:00:06]} Rbe7 $2 {[%emt 0:00:05] [#] A mistake that costs the game.} (26... Qf8 $14) 27. Bb4 $1 $18 {[%emt 0:00:58]} Qb5 {[%emt 0:01:14]} 28. Bxe7 {[%emt 0:00:05]} Rxe7 {[%emt 0:00:05]} 29. f5 {[%emt 0:01:30][%cal Of5f6] f6! would now be deadly.} d4 {[%emt 0:10:15]} 30. exd4 {[%emt 0:02:35][%cal Of5f6] And now f6! would win.} (30. Qxd4 Rd7 31. Qg4 Rxd1+ 32. Qxd1 Qxb2 $11) 30... c3 {[%emt 0:00:59]} (30... Qxf5 $142 31. d5 Rd7) 31. Qxc3 {[%emt 0:01:00]} (31. bxc3 Re2 32. Rd3 (32. Qd3 $2 Rxg2+ 33. Kf1 Qd5 $19) 32... Rxd2 33. R3xd2 Bd5 $19 (33... Qxf5 $2 34. d5 $19)) 31... Bxg2 {[%emt 0:00:58]} (31... Qd5 $142 32. Rg3 h5) 32. Qb3+ {[%emt 0:00:20]} (32. f6 $142 Bxh3 33. fxe7) 32... Qxb3 {[%emt 0:00:02]} 33. Rxb3 {[%emt 0:00:05][%mdl 4096] Endgame. KRR-KRB} Bd5 {[%emt 0:00:02]} 34. Rg3 {[%emt 0:00:10]} Kf7 {[%emt 0:00:56]} 35. Kf2 {[%emt 0:00:34]} Re4 {[%emt 0:00:12]} 36. Rdg1 {[%emt 0:00:33]} Rxd4 {[%emt 0:00:07]} 37. Rxg7+ {[%emt 0:00:21]} Kf6 {[%emt 0:00:01]} 38. R1g6+ {[%emt 0:02:58]} ({Don't take} 38. Rxa7 Rd2+ 39. Ke3 Rxb2 $18) 38... Kxf5 {[%emt 0:00:02]} 39. Rxh6 {[%emt 0:00:07]} Rd2+ $2 {[%emt 0:00:48] [#]} (39... Bxa2 40. h4 (40. Rxa7 Rd2+ 41. Ke3 Rxb2 $18) 40... Kf4) 40. Ke3 {[%emt 0:00:04]} Rxb2 {[%emt 0:00:05]} 41. h4 {[%emt 0:00:11] Weighted Error Value: White=0.24 (precise) /Black=0.52.  Loses game:     	---       	Black=1      Mistake:       	White=1     	Black=3      Inaccurate:     	---       	Black=2      OK:         	White=17    	Black=14     Best:        	White=3     	Black=2      Strong:       	White=1     	---} 1-0

[Event "EYCC O18-ch 2024"]
[Site "Prague"]
[Date "2024.08.25"]
[Round "4.5"]
[White "Smolik, Jachym"]
[Black "Grgantov, Marin"]
[Result "1-0"]
[ECO "A18"]
[WhiteElo "2290"]
[BlackElo "2110"]
[Annotator "ChessBase"]
[PlyCount "61"]
[EventDate "2024.08.19"]
[EventType "swiss"]
[EventCountry "CZE"]
[SourceTitle "playchess.com"]
[Source "ChessBase"]
[SourceQuality "1"]
[TimeControl "5400+30"]

1. c4 {[%emt 0:00:02]} Nf6 {[%emt 0:00:18]} 2. Nc3 {[%emt 0:00:06]} e6 {[%emt 0:00:05]} 3. e4 {[%emt 0:00:06]} d5 {[%emt 0:00:03]} 4. e5 {[%emt 0:00:10]} d4 {[%emt 0:00:06]} 5. exf6 {[%emt 0:00:06]} dxc3 {[%emt 0:00:05]} 6. bxc3 {[%emt 0:00:11]} Qxf6 {[%emt 0:00:05]} 7. Nf3 {[%emt 0:00:08]} b6 {[%emt 0:01:41]} 8. c5 {[%emt 0:00:21]} Bxc5 {[%emt 0:15:02]} 9. d4 {[%emt 0:00:44]} Bd6 {[%emt 0:04:09]} 10. Bd3 {[%emt 0:00:19]} h6 {[%emt 0:01:10]} 11. Be4 {[%emt 0:00:19]} c6 {[%emt 0:00:55]} 12. O-O {[%emt 0:00:13]} Bb7 {[%emt 0:06:10]} 13. Re1 {[%emt 0:02:25]} O-O {[%emt 0:10:50]} 14. g4 {[%emt 0:02:47]} g5 {[%emt 0:12:19]} 15. h4 {[%emt 0:10:31]} Bf4 {[%emt 0:07:02]} 16. hxg5 {[%emt 0:02:53]} hxg5 {[%emt 0:00:02]} 17. Ne5 {[%emt 0:19:26]} Kg7 {[%emt 0:05:44]} 18. Bxf4 {[%emt 0:05:50]} Qxf4 {[%emt 0:00:24]} 19. Re3 {[%emt 0:10:31]} Rh8 {[%emt 0:03:13]} 20. Qd3 {[%emt 0:03:31]} Rh6 {[%emt 0:10:12]} 21. Bg2 {[%emt 0:12:12]} Ba6 {[%emt 0:01:53]} 22. c4 {[%emt 0:00:18]} f6 {[%emt 0:01:56]} 23. Nf3 {[%emt 0:01:04]} Qxg4 {[%emt 0:01:42]} 24. Rae1 {[%emt 0:01:03]} Kf7 {[%emt 0:01:37]} 25. Rxe6 {[%emt 0:05:20]} Qxe6 {[%emt 0:00:29]} 26. Rxe6 {[%emt 0:00:02]} Kxe6 {[%emt 0:00:01]} 27. d5+ {[%emt 0:00:16]} Kf7 {[%emt 0:08:17]} 28. dxc6 {[%emt 0:00:14]} Nxc6 {[%emt 0:01:19]} 29. Qd5+ {[%emt 0:00:44]} Kg7 {[%emt 0:00:19]} 30. Qxc6 {[%emt 0:00:07]} Rc8 {[%emt 0:00:05]} 31. Qa4 {[%emt 0:00:36]} 1-0

[Event "EYCC O18-ch 2024"]
[Site "Prague"]
[Date "2024.08.25"]
[Round "4.7"]
[White "Hercegovac, Neven"]
[Black "Zajakins, Artjoms"]
[Result "1-0"]
[ECO "C50"]
[WhiteElo "2278"]
[BlackElo "1981"]
[Annotator "ChessBase"]
[PlyCount "79"]
[EventDate "2024.08.19"]
[EventType "swiss"]
[EventCountry "CZE"]
[SourceTitle "playchess.com"]
[Source "ChessBase"]
[SourceQuality "1"]
[TimeControl "5400+30"]

1. e4 e5 2. Nf3 Nc6 3. Bc4 Bc5 4. d3 Nf6 5. Bg5 h6 6. Bh4 O-O 7. c3 Be7 8. Bg3 d6 9. a4 Be6 10. Nbd2 a6 11. O-O Bxc4 12. Nxc4 Re8 13. Re1 Bf8 14. Bh4 Be7 15. Bxf6 Bxf6 16. Ne3 g6 17. g3 Bg7 18. h4 Qd7 19. h5 Rab8 20. Kg2 Nd8 21. Nh4 Kh7 22. Rh1 Bf6 23. hxg6+ fxg6 24. Nxg6 Kxg6 25. Qh5+ Kg7 26. Qxh6+ Kf7 27. Qh7+ Bg7 28. Rh5 Kf8 29. Rg5 Qe7 30. Rg6 Qf7 31. Nf5 Ne6 32. Rh1 Qg8 33. Qh4 Qf7 34. Qg4 Bf6 35. Nh6 Qg7 36. Rxg7 Nxg7 37. Qg6 Ke7 38. Qf7+ Kd8 39. Qxf6+ Re7 40. Ng8 1-0

[Event "EYCC O18-ch 2024"]
[Site "Prague"]
[Date "2024.08.25"]
[Round "4.8"]
[White "Hak, David"]
[Black "Pidluznij, Gleb"]
[Result "1-0"]
[ECO "D41"]
[WhiteElo "2239"]
[BlackElo "2414"]
[Annotator "ChessBase"]
[PlyCount "53"]
[EventDate "2024.08.19"]
[EventType "swiss"]
[EventCountry "CZE"]
[SourceTitle "playchess.com"]
[Source "ChessBase"]
[SourceQuality "1"]
[TimeControl "5400+30"]

1. d4 {[%emt 0:00:01]} d5 {[%emt 0:00:16]} 2. c4 {[%emt 0:00:04]} e6 {[%emt 0:00:06]} 3. Nc3 {[%emt 0:00:06]} Nf6 {[%emt 0:00:11]} 4. Nf3 {[%emt 0:00:05]} c5 {[%emt 0:00:22]} 5. cxd5 {[%emt 0:00:10]} Nxd5 {[%emt 0:00:11]} 6. e4 {[%emt 0:00:08]} Nxc3 {[%emt 0:00:09]} 7. bxc3 {[%emt 0:00:00]} cxd4 {[%emt 0:00:16]} 8. cxd4 {[%emt 0:00:05]} Bb4+ {[%emt 0:00:08]} 9. Bd2 {[%emt 0:00:08]} Bxd2+ {[%emt 0:00:12]} 10. Qxd2 {[%emt 0:00:05]} O-O {[%emt 0:00:09]} 11. Bc4 {[%emt 0:00:04]} Nd7 {[%emt 0:00:17]} 12. O-O {[%emt 0:00:05]} b6 {[%emt 0:01:02]} 13. Rfe1 {[%emt 0:00:29]} Bb7 {[%emt 0:02:31]} 14. Rad1 {[%emt 0:00:21]} Rc8 {[%emt 0:01:21]} 15. Bb3 {[%emt 0:00:18]} Re8 {[%emt 0:06:44]} 16. h3 {[%emt 0:01:01]} Qf6 {[%emt 0:04:51]} 17. Re3 {[%emt 0:04:50]} e5 {[%emt 0:14:26]} 18. dxe5 {[%emt 0:05:32]} Nxe5 {[%emt 0:00:09]} 19. Nxe5 {[%emt 0:02:53]} Qxe5 {[%emt 0:00:09]} 20. Rf3 {[%emt 0:04:10]} Rf8 {[%emt 0:42:55]} 21. Rxf7 {[%emt 0:05:27]} Rxf7 {[%emt 0:00:01]} 22. Qd8+ {[%emt 0:02:13]} Qe8 {[%emt 0:00:08]} 23. Qxe8+ {[%emt 0:00:24]} Rxe8 {[%emt 0:00:06]} 24. Rd7 {[%emt 0:00:05]} Rb8 {[%emt 0:00:40]} 25. e5 {[%emt 0:01:49]} a5 {[%emt 0:05:21]} 26. Rxf7 {[%emt 0:00:34]} Kh8 {[%emt 0:01:43]} 27. e6 {[%emt 0:00:06]} 1-0

[Event "EYCC O18-ch 2024"]
[Site "Prague"]
[Date "2024.08.25"]
[Round "4.9"]
[White "Soderstrom, Adrian"]
[Black "Belkaid, Sohan"]
[Result "1-0"]
[ECO "B67"]
[WhiteElo "2318"]
[BlackElo "2384"]
[Annotator "ChessBase"]
[PlyCount "87"]
[EventDate "2024.08.19"]
[EventType "swiss"]
[EventCountry "CZE"]
[SourceTitle "playchess.com"]
[Source "ChessBase"]
[SourceQuality "1"]
[TimeControl "5400+30"]

1. e4 {[%emt 0:00:06]} c5 {[%emt 0:00:27]} 2. Nf3 {[%emt 0:00:06]} d6 {[%emt 0:00:08]} 3. d4 {[%emt 0:00:04]} cxd4 {[%emt 0:00:08]} 4. Nxd4 {[%emt 0:00:04]} Nf6 {[%emt 0:00:08]} 5. Nc3 {[%emt 0:00:05]} Nc6 {[%emt 0:00:07]} 6. Bg5 {[%emt 0:00:22]} e6 {[%emt 0:00:15]} 7. Qd2 {[%emt 0:00:09]} a6 {[%emt 0:00:13]} 8. O-O-O {[%emt 0:00:20]} Bd7 {[%emt 0:00:13]} 9. Kb1 {[%emt 0:00:22]} Nxd4 {[%emt 0:01:49]} 10. Qxd4 {[%emt 0:00:09]} Be7 {[%emt 0:00:08]} 11. h4 {[%emt 0:03:23]} Qc7 {[%emt 0:09:14]} 12. Qd2 {[%emt 0:09:40]} b5 {[%emt 0:05:05]} 13. f3 {[%emt 0:01:12]} b4 {[%emt 0:06:56]} 14. Ne2 {[%emt 0:00:10]} a5 {[%emt 0:00:39]} 15. g4 {[%emt 0:18:17]} h5 {[%emt 0:29:28]} 16. gxh5 {[%emt 0:00:31]} Nxh5 {[%emt 0:00:19]} 17. c4 {[%emt 0:15:49]} e5 {[%emt 0:21:43]} 18. Rg1 {[%emt 0:06:30]} Bxg5 {[%emt 0:06:22]} 19. hxg5 {[%emt 0:00:59]} Ke7 {[%emt 0:01:02]} 20. g6 {[%emt 0:11:47]} f6 {[%emt 0:00:24]} 21. Rh1 {[%emt 0:01:46]} Qc5 {[%emt 0:09:17]} 22. Bh3 {[%emt 0:07:24]} Ng3 {[%emt 0:01:02]} 23. Nxg3 {[%emt 0:00:25]} Bxh3 {[%emt 0:00:35]} 24. Rc1 {[%emt 0:03:21]} a4 {[%emt 0:01:06]} 25. Qd5 {[%emt 0:03:53]} Qxd5 {[%emt 0:01:06]} 26. cxd5 {[%emt 0:00:03]} Bd7 {[%emt 0:02:16]} 27. Nf5+ {[%emt 0:02:37]} Bxf5 {[%emt 0:00:08]} 28. exf5 {[%emt 0:00:02]} Kd7 {[%emt 0:03:05]} 29. Rh7 {[%emt 0:01:19]} Rhg8 {[%emt 0:00:21]} 30. Rc4 {[%emt 0:00:38]} Rab8 {[%emt 0:00:29]} 31. Rhh4 {[%emt 0:01:01]} Rh8 {[%emt 0:01:04]} 32. Rxh8 {[%emt 0:01:15]} Rxh8 {[%emt 0:00:04]} 33. Rxb4 {[%emt 0:00:09]} Rh5 {[%emt 0:00:35]} 34. Rxa4 {[%emt 0:05:00]} Rxf5 {[%emt 0:00:06]} 35. Ra7+ {[%emt 0:00:08]} Ke8 {[%emt 0:00:21]} 36. Rxg7 {[%emt 0:00:59]} Rxf3 {[%emt 0:00:25]} 37. Rg8+ {[%emt 0:01:01]} Ke7 {[%emt 0:00:22]} 38. Ra8 {[%emt 0:00:15]} Rf1+ {[%emt 0:01:06]} 39. Kc2 {[%emt 0:00:07]} Rf2+ {[%emt 0:00:14]} 40. Kd1 {[%emt 0:00:18]} Rg2 {[%emt 0:01:25]} 41. g7 {[%emt 0:00:07]} Rxg7 {[%emt 0:00:06]} 42. Ra7+ {[%emt 0:00:05]} Kf8 {[%emt 0:00:05]} 43. Rxg7 {[%emt 0:00:07]} Kxg7 {[%emt 0:00:04]} 44. a4 {[%emt 0:00:04]} 1-0

[Event "EYCC O18-ch 2024"]
[Site "Prague"]
[Date "2024.08.25"]
[Round "4.10"]
[White "Razafindratsima, Timothe"]
[Black "Sahakyan, Aleks"]
[Result "1/2-1/2"]
[ECO "C50"]
[WhiteElo "2457"]
[BlackElo "2287"]
[Annotator "TA"]
[PlyCount "160"]
[EventDate "2024.08.19"]
[EventType "swiss"]
[EventCountry "CZE"]
[SourceTitle "playchess.com"]
[Source "ChessBase"]
[SourceQuality "1"]
[TimeControl "5400+30"]

{[%evp 55,160,0,0,0,0,-9,0,0,0,0,0,0,10,0,25,8,8,0,0,-8,-8,-204,-200,-191,-182,-171,-144,-158,-156,-155,-151,-181,-161,-205,-126,-163,-163,-147,-136,-204,-179,-178,-173,-370,-370,-389,-389,-363,-188,-180,-105,-112,-112,-112,-112,-112,-112,-112,-112,-112,-60,-60,-61,-157,0,0,0,0,0,0,0,0,0,0,0,0,0,0,0,0,0,0,0,0,0,0,0,0,0,0,0,0,0,0,0,0,0,0,0,0,0,0,0,0,0,0,0]} 1. e4 {[%emt 0:00:02]} e5 {[%emt 0:00:01]} 2. Nf3 {[%emt 0:00:15]} Nc6 {[%emt 0:00:02]} 3. Bc4 {[%emt 0:00:14]} Nf6 {[%emt 0:00:02]} 4. d3 {[%emt 0:00:09]} Bc5 {[%emt 0:00:06]} 5. c3 {[%emt 0:00:24]} d6 {[%emt 0:00:18]} 6. O-O {[%emt 0:00:29]} a5 {[%emt 0:00:17] C54: Giuoco Piano: 4 c3 Nf6, main lines with 5 d4 and 5 d3.} 7. Re1 {[%emt 0:01:09]} h6 {[%emt 0:00:27]} 8. Bb3 {[%emt 0:01:27]} O-O {[%emt 0:01:04]} 9. h3 {[%emt 0:00:56]} Ba7 {[%emt 0:02:03]} 10. Nbd2 {[%emt 0:04:16]} Be6 {[%emt 0:02:15]} 11. Nf1 {[%emt 0:07:31]} Bxb3 12. axb3 {[%emt 0:00:47]} d5 {[%emt 0:07:26]} 13. Qe2 {[%emt 0:04:04]} Qd7 $146 {[%emt 0:04:51]} ({Predecessor:} 13... Re8 14. Ng3 Bc5 15. Nh4 Bf8 16. Nhf5 Re6 17. f4 dxe4 18. dxe4 Nd7 19. fxe5 Nc5 {0-1 Lopez Silva,H (2408)-Mareco,S (2634) Arica op 7th 2021 (4)}) 14. Ng3 {[%emt 0:14:31]} Rfd8 {[%emt 0:04:23]} 15. Nd2 {[%emt 0:09:50]} dxe4 {[%emt 0:15:08]} 16. Ndxe4 {[%emt 0:03:43]} Qe6 {[%emt 0:07:26]} 17. Qf3 {[%emt 0:05:18]} Nd5 {[%emt 0:07:57]} 18. Nf5 {[%emt 0:09:26]} Nf4 {[%emt 0:19:08]} 19. Qg4 {[%emt 0:00:12]} g6 {[%emt 0:01:00]} 20. Bxf4 {[%emt 0:11:43]} Qxf5 {[%emt 0:01:23]} 21. Qxf5 {[%emt 0:07:05]} gxf5 {[%emt 0:00:07]} 22. Nf6+ {[%emt 0:00:05]} Kg7 {[%emt 0:00:16]} 23. Bxe5 {[%emt 0:00:18]} Kg6 {[%emt 0:05:23]} 24. d4 {[%emt 0:10:02]} Nxe5 {[%emt 0:00:01]} 25. Rxe5 {[%emt 0:00:06]} Bxd4 {[%emt 0:01:37]} 26. cxd4 {[%emt 0:00:11]} Kxf6 {[%emt 0:00:02]} 27. Rc1 {[%emt 0:06:04]} c6 {[%emt 0:01:42]} 28. Rcc5 {[%emt 0:00:54]} Rxd4 {[%emt 0:04:05]} 29. Rxf5+ {[%emt 0:00:02]} Kg6 {[%emt 0:00:11]} 30. Rf3 {[%emt 0:00:03]} Rd5 {[%emt 0:01:24]} 31. Rxd5 {[%emt 0:03:31]} cxd5 {[%emt 0:00:02]} 32. Rd3 {[%emt 0:00:45]} Rd8 {[%emt 0:00:18]} 33. Kf1 {[%emt 0:00:04]} d4 {[%emt 0:04:09]} 34. Ke2 {[%emt 0:00:01]} Rd5 {[%emt 0:00:43]} 35. Rg3+ {[%emt 0:00:27]} Kf6 {[%emt 0:01:05]} 36. Kd3 {[%emt 0:00:19]} Rf5 {[%emt 0:00:42]} 37. f3 {[%emt 0:00:27]} Rb5 {[%emt 0:00:06]} 38. Rg4 $2 {[%emt 0:01:18]} (38. Kc2 $1 $11 {and White is okay.}) 38... Rxb3+ $19 {[%emt 0:00:25]} 39. Kc2 {[%emt 0:00:16]} Rb4 {[%emt 0:01:09]} 40. Rf4+ {[%emt 0:00:05]} Kg6 {[%emt 0:00:44]} 41. Rg4+ {[%emt 0:01:12]} Kf5 {[%emt 0:00:08]} 42. Rg7 {[%emt 0:00:06]} Kf6 {[%emt 0:00:05]} 43. Rg8 {[%emt 0:00:19]} d3+ {[%emt 0:00:19]} 44. Kc3 {[%emt 0:00:32]} Ke7 {[%emt 0:00:56]} 45. Kxd3 {[%emt 0:00:05]} Rxb2 {[%emt 0:00:01]} 46. Kc3 {[%emt 0:00:00]} Rb6 {[%emt 0:02:00]} 47. Rg4 {[%emt 0:00:04]} (47. Ra8 $17) 47... Rc6+ $19 {[%emt 0:00:42]} 48. Kb3 {[%emt 0:00:05]} b5 {[%emt 0:00:21]} 49. Rh4 $2 {[%emt 0:00:02]} (49. Rg8 {was the only chance.}) 49... Rg6 $19 {[%emt 0:01:27]} 50. Rh5 {[%emt 0:00:46]} a4+ {[%emt 0:02:50]} (50... Rxg2 $2 51. Rxb5 Rg5 52. Rb7+ Kf6 53. Rb6+ Kg7 54. Kc2 $17) ({Less strong is} 50... Rg5 51. Rxh6 Rxg2 52. Rh5 $17) 51. Ka3 {[%emt 0:01:11]} Rxg2 {[%emt 0:01:10]} (51... Rg5 $142 52. Rxh6 Rxg2) 52. Rxb5 $19 {[%emt 0:00:34]} Rg3 (52... Kf6 $19 {And now ...Rf2 would win.} 53. Rb4 Kf5) 53. Rh5 $17 {[%emt 0:00:30]} Rxf3+ {[%emt 0:01:54]} 54. Kxa4 {[%emt 0:00:01]} Rf6 $1 {[%emt 0:01:25]} 55. Kb5 {[%emt 0:00:07] [#]} Kf8 $1 {[%emt 0:00:26]} 56. Kc4 {[%emt 0:00:35]} Kg7 {[%emt 0:00:34]} 57. Kd3 {[%emt 0:00:59] [#]} Kg6 {[%emt 0:00:11]} (57... Re6 $1 $17) 58. Rh4 $15 {[%emt 0:00:24]} Re6 {[%emt 0:00:31]} 59. Rf4 {[%emt 0:00:40]} ({Better is} 59. Rg4+ $15 Kh7 60. Kd4) 59... f5 $2 {[%emt 0:00:25]} (59... Re5 $17 60. Rf3 f6) 60. h4 $11 {[%emt 0:01:20]} Kf6 {[%emt 0:00:08]} 61. Ra4 {[%emt 0:00:37]} Kg6 {[%emt 0:00:41]} 62. Rf4 {[%emt 0:00:02]} Re1 63. Ra4 {[%emt 0:00:19]} Re8 {[%emt 0:04:01]} 64. Rb4 {[%emt 0:00:06]} Kf6 {[%emt 0:00:25]} 65. Rb6+ {[%emt 0:00:19]} Re6 {[%emt 0:00:05]} 66. Rb4 {[%emt 0:00:05]} Kg7 {[%emt 0:00:56]} 67. Ra4 {[%emt 0:00:10]} Re7 {[%emt 0:00:29]} 68. Rb4 {[%emt 0:00:05]} Kg6 {[%emt 0:00:39]} 69. Ra4 {[%emt 0:00:24]} Kh5 {[%emt 0:00:46]} 70. Rf4 {[%emt 0:00:01]} Kg6 {[%emt 0:00:22]} 71. Ra4 {[%emt 0:00:02]} Re1 {[%emt 0:00:11]} 72. Rb4 {[%emt 0:00:07]} Rg1 {[%emt 0:00:25]} 73. Ke3 {[%emt 0:00:45]} Kh5 {[%emt 0:00:51]} 74. Rf4 {[%emt 0:00:43]} Kg6 {[%emt 0:00:09]} 75. Ra4 {[%emt 0:00:08]} Rg3+ {[%emt 0:00:14]} 76. Kf2 {[%emt 0:00:19]} Rg4 {[%emt 0:00:05]} 77. Ra6+ {[%emt 0:00:52]} Kh5 {[%emt 0:00:34]} 78. Rf6 {[%emt 0:00:13]} Kxh4 {[%emt 0:00:52]} 79. Rxf5 {[%emt 0:00:45]} h5 {[%emt 0:00:01]} 80. Ra5 {[%emt 0:00:39]} Rg8 {[%emt 0:00:06]} 1/2-1/2